Cogmind - Beta 15 @@@ ROGUE MODE // 2025.06.27 @ 17:46:55 Player: Demo Result: Destroyed by S-27 Virus with Autogun Performance ------------- Evolutions (3) 1500 Regions Visited (12) 2400 Robots Destroyed (155) 775 Value Destroyed (5297) 5297 Prototype IDs (216) 4320 Alien Tech Used (0) 0 Bonus (3300) 3300 TOTAL SCORE: 17592 Bonus ------- Met Data Miner 300 Used Data Conduit 3000 Cogmind --------- Core Integrity 0/700 Matter 234/300 Energy 630/650 System Corruption 73% Temperature Warm (147) Movement Walking (120) Location -6/Proximity Caves Parts ------- > --- POWER (1) -------- Light Angular Momentum Engine > --- PROPULSION (3) --- Enhanced Flexi-carbon Leg Enhanced Flexi-carbon Leg Enhanced Flexi-carbon Leg > --- UTILITY (5) ------ High-capacity Storage Unit Advanced Energy Well Improved Targeting Computer Improved Light Armor Plating Layered Medium Armor Plating > --- WEAPON (4) ------- Lightning Gun Arc Projector Heavy Laser Mini Grenade Launcher > --- INVENTORY (20) --- Light Treads Medium Treads Medium Treads Medium Treads Medium Treads Carbon-fiber Leg Enhanced Flexi-carbon Leg Enhanced Flexi-carbon Leg Advanced Heat Sink Advanced Heat Sink Huge Storage Unit High-capacity Matter Pod (130) Experimental Sensor Array Precision Energy Filter Layered Medium Armor Plating Improved Powered Armor Experimental Thermal Shield Arc Projector Neutron Cannon Plasma Cutter Peak State ------------ > --- POWER ------------ Antimatter Reactor > --- PROPULSION ------- Enhanced Flexi-carbon Leg Enhanced Flexi-carbon Leg Enhanced Flexi-carbon Leg > --- UTILITY ---------- Improved Heat Sink Huge Storage Unit Improved Targeting Computer Core Analyzer Layered Medium Armor Plating > --- WEAPON ----------- Arc Projector Neutron Cannon Advanced Assault Cannon Gauss Cannon > --- INVENTORY -------- Medium Treads Medium Treads Medium Treads Medium Treads Enhanced Flexi-carbon Leg Enhanced Flexi-carbon Leg Enhanced Flexi-carbon Leg Advanced Heat Sink High-capacity Storage Unit Advanced Energy Well Advanced Energy Well High-capacity Matter Pod Experimental Sensor Array Precision Energy Filter Layered Medium Armor Plating Layered Medium Armor Plating Improved Powered Armor Experimental Thermal Shield Lightning Gun Arc Projector Arc Projector Neutron Cannon Mini Grenade Launcher Mini Grenade Launcher Plasma Cutter [Rating: 74] Favorites ----------- Power Cooled Deuterium Engine Engine Cooled Deuterium Engine Reactor Antimatter Reactor Propulsion Wheel Treads Medium Treads Leg Enhanced Flexi-carbon Leg Wheel Wheel Utility Huge Storage Unit Device Improved Heat Sink Storage Huge Storage Unit Processor Core Analyzer Protection Light Armor Plating Weapon Gauss Rifle Energy Gun Arc Projector Energy Cannon Neutron Cannon Ballistic Gun Gauss Rifle Ballistic Cannon Advanced Assault Cannon Launcher Mini Grenade Launcher Special Weapon Plasma Cutter Build | -11 -10 -10 -9 -9 -9 -8 -8 -7 -7 -7 -7 -6 ------- Run | Yrd Mat Min Mat Min Exi Min Mat Fac Low Low Dat Pro Slots Evolved 6 | . . . 2 . . . 2 2 . . . . Power . | . . . . . . . . . . . . . Propulsion 1 | . . . . . . . 1 . . . . . Utility 3 | . . . 1 . . . 1 1 . . . . Weapon 2 | . . . 1 . . . . 1 . . . . Parts Attached 131 | 6 4 4 16 6 . 2 20 31 9 6 17 10 Power 9 | 1 . . 2 . . . 2 1 . . 2 1 Engine 8 | 1 . . 2 . . . 2 1 . . 1 1 Core . | . . . . . . . . . . . . . Reactor 1 | . . . . . . . . . . . 1 . Propulsion 42 | 2 . 2 4 2 . . 8 10 3 4 4 3 Treads 15 | 1 . 1 1 . . . 5 3 1 2 . 1 Leg 6 | . . . . . . . . . . . 4 2 Wheel 21 | 1 . 1 3 2 . . 3 7 2 2 . . Hover . | . . . . . . . . . . . . . Flight . | . . . . . . . . . . . . . Utility 38 | 1 3 1 2 3 . 1 5 11 4 1 3 3 Device 10 | . . . 1 1 . . 2 3 1 1 . 1 Storage 6 | 1 2 1 1 . . . . . . . 1 . Processor 7 | . 1 . . . . . . 6 . . . . Hackware . | . . . . . . . . . . . . . Protection 15 | . . . . 2 . 1 3 2 3 . 2 2 Artifact . | . . . . . . . . . . . . . Weapon 42 | 2 1 1 8 1 . 1 5 9 2 1 8 3 Energy Gun 12 | 1 . . 3 . . . . 1 1 1 2 3 Energy Cannon 4 | . . . 2 . . . . . . . 2 . Ballistic Gun 17 | 1 1 1 3 1 . . 5 5 . . . . Ballistic Cannon 3 | . . . . . . . . 3 . . . . Launcher 5 | . . . . . . 1 . . 1 . 3 . Special Weapon 1 | . . . . . . . . . . . 1 . Impact Weapon . | . . . . . . . . . . . . . Slashing Weapon . | . . . . . . . . . . . . . Piercing Weapon . | . . . . . . . . . . . . . Special Melee Weapon . | . . . . . . . . . . . . . Unidentified Prototypes 9 | . . . 4 1 . . 1 2 1 . . . Corrupted Parts 9 | . . . . . . . . . . . 8 1 System Corruption 62 | . . . . . . . . . . . 55 7 Parts Lost 40 | . 1 2 2 . . 1 5 5 2 2 11 9 Power 3 | . . . . . . . . . . . 2 1 Propulsion 13 | . . 1 2 . . . 2 2 1 2 2 1 Utility 11 | . . . . . . 1 3 2 1 . 2 2 Weapon 13 | . 1 1 . . . . . 1 . . 5 5 Highest Loss Streak 7 | . 1 2 2 . . 1 3 2 1 1 7 6 To Critical Strikes . | . . . . . . . . . . . . . Average Backups 22 | . 5 8 20 24 25 24 24 24 24 24 23 20 Power . | . . . . . . . 1 1 1 1 . . Propulsion 7 | . 3 4 7 7 7 7 7 8 8 7 5 6 Utility 5 | . . 2 3 6 7 6 4 4 3 5 8 8 Weapon 8 | . 1 . 7 9 10 10 10 10 10 10 8 4 Tool/Special . | . . . . . . . . . . . . . Unused Backups 46 | . . . 8 7 . . 5 11 3 . 1 11 Power 1 | . . . . . . . . . 1 . . . Propulsion 14 | . . . 1 1 . . 2 4 . . . 6 Utility 11 | . . . 3 2 . . . . . . 1 5 Weapon 19 | . . . 4 4 . . 3 6 2 . . . Tool/Special 1 | . . . . . . . . 1 . . . . Average Slot Usage (%) 95 | . 97 99 97 99 95 100 93 95 96 100 88 75 Engine 8 | . 14 14 11 11 11 11 9 7 7 7 3 2 Treads 5 | . 14 6 1 . . . 7 7 7 7 14 . Leg 1 | . . . . . . . . . . . 2 22 Wheel 15 | . 14 21 20 22 22 22 15 14 14 14 5 . Device 5 | . . . 11 2 . . 8 10 . 6 5 3 Storage 8 | . 14 14 11 11 11 11 9 7 7 7 7 8 Processor 10 | . 10 14 11 2 . . . 14 15 15 15 13 Protection 8 | . . . . 16 22 22 16 4 11 8 6 5 Energy Gun 2 | . 10 . 8 . . . . . . 2 6 5 Ballistic Gun 18 | . 17 28 22 33 28 33 27 19 13 12 1 . Ballistic Cannon 5 | . . . . . . . . 4 14 14 6 3 Peak Build Rating 74 | 6 7 8 17 24 17 17 30 50 48 51 74 74 Average Rating 33 | 4 6 7 14 16 16 16 27 42 45 48 48 54 On Entrance 25 | . 6 7 7 16 17 17 17 30 48 47 51 74 Naked Turns . | . . . . . . . . . . . . . Heaviest Build 131 | 13 28 48 99 102 102 102 113 117 125 125 131 131 Greatest Support 84 | 10 10 20 40 20 20 20 26 32 20 20 84 84 Greatest Overweight (x) 12 | 1 2 4 9 5 5 5 10 11 12 6 6 1 Average Overweight (x) 4 | . 1 2 4 4 4 5 6 4 5 6 2 . Largest Inventory Capacity 25 | 8 15 20 25 25 25 25 25 25 25 25 25 25 Average Capacity 24 | 7 13 18 24 25 25 25 25 25 25 25 25 21 Most Carried 25 | . 7 11 25 25 25 25 25 25 25 25 25 25 Average Carried 22 | . 5 8 20 24 25 24 24 24 24 24 23 20 Final Capacity 25 | 8 15 20 25 25 25 25 25 25 25 25 25 20 Final Carried 25 | . 6 9 25 25 25 25 25 25 25 25 25 20 Class Distribution -------------------- 38% | Gunner 19% | Scavenger-Tank 13% | Mutant 12% | Scavenger-Gunner 10% | Skirmisher 5% | Tank Dominant Class ---------------- Mutant | -10/Materials Mutant | -10/Mines Skirmisher | -9/Materials Tank | -9/Mines Scavenger-Tank | -9/Exiles Scavenger-Tank | -8/Mines Scavenger-Tank | -8/Materials Gunner | -7/Factory Gunner | -7/Lower Caves Gunner | -7/Lower Caves Scavenger-Gunner | -7/Data Miner Mutant | -6/Proximity Caves Resources | -11 -10 -10 -9 -9 -9 -8 -8 -7 -7 -7 -7 -6 ----------- Run | Yrd Mat Min Mat Min Exi Min Mat Fac Low Low Dat Pro Matter Collected 5728 | 183 98 203 557 300 . 136 1117 1131 741 378 285 599 Remotely 727 | . . . . . . . 331 396 . . . . Salvage Created 6567 | 82 223 20 949 557 . 123 1102 1540 745 362 397 467 Parts 343 | 5 15 . 49 39 . 12 48 93 26 22 19 15 Haulers Intercepted 6 | . 1 . 3 . . . 1 . 1 . . . Recyclers Shooed 5 | . 1 . 1 1 . . . 2 . . . . Parts Field Recycled . | . . . . . . . . . . . . . Retrieved Matter . | . . . . . . . . . . . . . Parts Self-Destructed 37 | . . . . . . . . . 11 16 . 10 Prevented 13 | . . . . . . . . . 7 4 . 2 Kills | -11 -10 -10 -9 -9 -9 -8 -8 -7 -7 -7 -7 -6 ------- Run | Yrd Mat Min Mat Min Exi Min Mat Fac Low Low Dat Pro Combat Hostiles Destroyed 112 | . 6 2 10 11 . 3 15 25 15 8 4 13 Guns 60 | . 6 2 10 11 . . 15 10 4 2 . . Cannons 28 | . . . . . . . . 13 6 3 . 6 AOE 18 | . . . . . . 3 . 2 2 3 1 7 Classes Destroyed 20 | 1 3 1 3 4 . . 2 3 1 2 . . Worker 15 | . . . 3 2 . . 3 7 . . . . Builder 3 | . . . . 1 . 1 1 . . . . . Tunneler 3 | . . . . 2 . 1 . . . . . . Hauler 6 | . 1 . 3 . . . 1 . 1 . . . Recycler 12 | 1 . . 3 2 . . 2 4 . . . . Minesweeper 1 | . . . . . . . . . . 1 . . Mechanic 1 | . . . . . . . 1 . . . . . Operator 1 | . . . . . . . 1 . . . . . Watcher 3 | . . . 2 . . . . 1 . . . . Swarmer 18 | . 4 . . 6 . . . . 3 3 . 2 Grunt 50 | . 2 . 6 3 . 2 11 12 6 4 . 4 Brawler 7 | . . . . 1 . 1 1 . 1 . . 3 Duelist 4 | . . . . 1 . . . . . . . 3 Sentry 12 | . . . 4 . . . 3 4 . . . 1 Hunter 1 | . . . . . . . . 1 . . . . Programmer 8 | . . . . . . . . 7 1 . . . Heavy 1 | . . . . . . . . 1 . . . . Behemoth 1 | . . . . . . . . . . 1 . . Enhanced Grunt 4 | . . . . . . . . . . . 4 . Decomposer 1 | . . . . . . . . . . 1 . . Assembled 2 | . . 2 . . . . . . . . . . Thug 1 | . . . . . . . . . 1 . . . Savage 2 | . . . . . . . . . 2 . . . Mutant 1 | . . . . . . . . . 1 . . . Best Kill Streak 9 | 1 3 2 6 9 . 4 6 7 6 3 3 3 Combat Bots Only 6 | . 3 2 5 6 . 3 4 5 5 3 3 3 Max Kills in Single Turn 4 | 1 1 1 1 2 . 3 2 4 2 2 1 2 Gunslinging 1 | . . . . 1 . . 1 . . . . . Exploded 2 | . . . . . . 2 . 2 2 2 1 2 Melee . | . . . . . . . . . . . . . Uniques/NPCs Destroyed . | . . . . . . . . . . . . . Combat | -11 -10 -10 -9 -9 -9 -8 -8 -7 -7 -7 -7 -6 -------- Run | Yrd Mat Min Mat Min Exi Min Mat Fac Low Low Dat Pro Hostile Shots Fired 565 | . 29 4 62 26 . 10 80 148 49 34 41 82 Missed 162 | . 8 2 16 8 . 3 14 48 14 11 11 27 Hits 403 | . 21 2 46 18 . 7 66 100 35 23 30 55 Melee 18 | . . 2 . . . . . . 1 . . 15 Projectile 385 | . 21 . 46 18 . 7 66 100 34 23 30 40 Critical Strikes 28 | . 1 1 4 . . . 6 3 5 1 . 7 Damage Taken 7682 | . 186 125 633 155 . 186 983 1329 575 448 1393 1669 Core 1019 | . 49 23 153 15 . 15 49 122 28 58 140 367 Absorbed by Shields . | . . . . . . . . . . . . . Redirected to Shielding 94 | . . . . 1 . 3 11 79 . . . . Ignored by Resistances 49 | . . . . . . . . . 49 . . . Regen/Repaired (Parts) 7 | . . . . . . . 7 . . . . . Core Remaining (%) 79 | 100 . 71 . . . 54 91 . . . . . Volleys Fired 337 | 5 19 12 51 24 . 4 60 62 32 17 26 25 Largest 4 | 2 2 2 3 3 . 3 3 4 4 4 4 4 Hottest 225 | 60 60 40 132 66 . 66 84 151 171 163 220 225 Shots Fired 927 | 9 36 24 139 72 . 8 180 203 97 55 48 56 Gun 745 | 9 36 24 138 72 . 6 180 164 48 26 28 14 Cannon 140 | . . . 1 . . . . 39 44 25 . 31 Launcher 41 | . . . . . . 2 . . 5 4 19 11 Special 1 | . . . . . . . . . . . 1 . Kinetic 764 | 5 22 24 107 72 . 6 180 193 90 43 . 22 Thermal 45 | . . . 32 . . . . . 2 . 1 10 Explosive 16 | . . . . . . 2 . . . . 3 11 Electromagnetic 102 | 4 14 . . . . . . 10 5 12 44 13 Robot Hit Streak 13 | 4 8 3 13 11 . 6 8 11 12 5 5 9 Robot Miss Streak 5 | 1 2 5 4 2 . 2 3 5 2 3 3 2 Penetration Max 1 | . . . . . . . 1 1 . . . 1 Secondary Targets 14 | . 1 1 2 6 . . 4 . . . . . Max Gunslinging Chain 2 | . 1 1 1 2 . . 2 . . . . . Shots Hit Robots 543 | 6 21 11 83 47 . 6 101 114 59 27 29 39 Core Hits 291 | 3 11 6 37 24 . 6 38 60 30 18 27 31 Critical Kills 2 | . . . . . . . 1 . . 1 . . Critical Parts Destroyed 6 | . . . . . . . 3 2 1 . . . Critical Strikes 14 | . . . 2 . . . 4 4 2 2 . . Burn 2 | . . . 2 . . . . . . . . . Destroy 8 | . . . . . . . 4 2 1 1 . . Blast 4 | . . . . . . . . 2 1 1 . . Melee Attacks . | . . . . . . . . . . . . . Impact . | . . . . . . . . . . . . . Slashing . | . . . . . . . . . . . . . Piercing . | . . . . . . . . . . . . . Sneak Attacks . | . . . . . . . . . . . . . Combat Hostiles . | . . . . . . . . . . . . . Follow-up Attacks . | . . . . . . . . . . . . . Damage Inflicted 13801 | 53 235 124 1370 666 . 362 1971 3669 2007 732 714 1898 Guns 7332 | 53 235 124 1192 666 . 61 1971 1978 601 173 124 154 Cannons 3283 | . . . . . . . . 1414 693 331 . 845 Explosions 3166 | . . . 178 . . 301 . 257 713 228 590 899 Melee . | . . . . . . . . . . . . . Ramming 20 | . . . . . . . . 20 . . . . Kinetic 9456 | 27 113 124 867 666 . 61 1971 3350 1276 447 . 554 Thermal 939 | . . . 325 . . . . . 197 44 60 313 Explosive 1624 | . . . . . . 301 . 257 . . 244 822 Electromagnetic 1762 | 26 122 . 178 . . . . 42 534 241 410 209 Impact . | . . . . . . . . . . . . . Slashing . | . . . . . . . . . . . . . Piercing . | . . . . . . . . . . . . . Highest Corruption 73 | . 2 2 2 2 2 2 . 1 3 3 58 73 Average Corruption 8 | . 2 2 2 2 2 2 . 1 2 3 13 65 Corruption Purged . | . . . . . . . . . . . . . Corruption Blocked . | . . . . . . . . . . . . . Effects 110 | . 4 1 3 8 7 3 . 2 16 16 16 34 Message Errors 26 | . 1 1 1 1 1 . . . 2 4 7 8 Matter Fused 24 | . 1 . 1 2 4 1 . . 5 3 1 6 Heat Flow Errors 15 | . 2 . 1 2 2 1 . . 2 . 3 2 Energy Discharges 11 | . . . . 2 . . . 1 3 1 1 3 Parts Rejected 2 | . . . . . . . . . . 1 . 1 Parts Fused 1 | . . . . . . . . . . . . 1 Data Loss (minor) 13 | . . . . 1 . 1 . 1 2 5 1 2 Data Loss (major) 4 | . . . . . . . . . 2 1 . 1 Misfires 3 | . . . . . . . . . . . 2 1 Alerts 2 | . . . . . . . . . . . 1 1 Weapon Failures 9 | . . . . . . . . . . 1 . 8 Overload Shots . | . . . . . . . . . . . . . Overflow Damage 214 | . . . . . . . . 116 . 11 . 87 Projectiles 144 | . . . . . . . . 116 . 9 . 19 Explosions 70 | . . . . . . . . . . 2 . 68 Melee . | . . . . . . . . . . . . . Knockbacks 13 | . . . . . . . . 5 3 2 . 3 Impact . | . . . . . . . . . . . . . Kinetic 13 | . . . . . . . . 5 3 2 . 3 Secondary . | . . . . . . . . . . . . . Self-Inflicted Damage 394 | . . . . . . 80 . 32 . . . 282 Shots 11 | . . . . . . 2 . 1 . . . 8 Rammed 2 | . . . . . . . . 2 . . . . Targets Rammed 2 | . . . . . . . . 2 . . . . Kicked . | . . . . . . . . . . . . . Crushed . | . . . . . . . . . . . . . Highest Temperature 486 | 20 314 22 276 136 182 117 224 176 407 123 486 263 Average Temperature 88 | 10 95 11 84 71 82 48 74 36 145 32 110 116 Received Heat Transfer 1959 | . 63 45 336 12 . 63 630 279 261 60 . 210 Effects 7 | . . . 2 . . . . . 2 . 2 1 Energy Bleed 1 | . . . . . . . . . 1 . . . Interference 6 | . . . 2 . . . . . 1 . 2 1 Siege Activations . | . . . . . . . . . . . . . Martial Activations . | . . . . . . . . . . . . . Shielding Activations . | . . . . . . . . . . . . . Robots Disrupted 2 | . . . 1 . . . . . . . . 1 Combat Hostiles 2 | . . . 1 . . . . . . . . 1 Robots Corrupted 7 | . . . . . . . . . 4 . 3 . Combat Hostiles 6 | . . . . . . . . . 3 . 3 . Parts Fried 8 | . . . . . . . . . 1 1 6 . Impact Corruptions . | . . . . . . . . . . . . . Robots Melted . | . . . . . . . . . . . . . Combat Hostiles . | . . . . . . . . . . . . . Parts Melted 1 | . . . 1 . . . . . . . . . Heat Transferred 1275 | . . . 851 . . . . . 287 50 50 37 Parts Sabotaged . | . . . . . . . . . . . . . Parts Stolen . | . . . . . . . . . . . . . Parts Stripped . | . . . . . . . . . . . . . Power Chain Reactions 7 | . . . 1 . . . . . 2 1 1 2 Alert | -11 -10 -10 -9 -9 -9 -8 -8 -7 -7 -7 -7 -6 ------- Run | Yrd Mat Min Mat Min Exi Min Mat Fac Low Low Dat Pro Maximum Alert Level 1 | . . . . 1 . . . 1 . . . . Low Security (%) 72 | 100 100 100 100 93 . 100 100 35 . . . . Level 1 27 | . . . . 6 . . . 64 . . . . Level 2 . | . . . . . . . . . . . . . Level 3 . | . . . . . . . . . . . . . Level 4 . | . . . . . . . . . . . . . Level 5 . | . . . . . . . . . . . . . High Security . | . . . . . . . . . . . . . Max Security . | . . . . . . . . . . . . . Peak Influence 390 | 5 100 34 133 216 . 90 163 390 . . . . Initial 46 | . . 34 . 46 . . 21 46 . . . . Average 127 | . 33 5 46 126 . 68 96 207 . . . . Influence Increases 3023 | 5 177 . 405 295 . 105 434 867 270 195 . 270 Destroy 0b10 Robot/C 2040 | . 120 . 200 220 . 60 300 500 220 160 . 260 Destroy 0b10 Robot/NC 225 | 5 5 . 55 35 . 10 45 60 5 5 . . Destroy Leader 446 | . 22 . 70 40 . 10 72 162 30 30 . 10 Successful Hack 43 | . . . 17 . . . . 26 . . . . Disable Machine 135 | . . . 30 . . 15 15 75 . . . . Destroy Structure 59 | . . . 3 . . 10 2 44 . . . . Partial Spotted 15 | . . . 15 . . . . . . . . . Lose Combat Pursuer 60 | . 30 . 15 . . . . . 15 . . . Influence Decreases 3003 | 5 87 90 285 344 71 50 386 587 614 230 4 250 Entered New Map 446 | . . 56 . 74 71 . 34 57 142 8 4 . Time Decay 2297 | 5 77 34 275 270 . 40 302 480 452 212 . 150 Lost Part 240 | . 10 . 10 . . 10 50 50 20 10 . 80 Lost Ally 20 | . . . . . . . . . . . . 20 Squads Dispatched 15 | . . . 1 . . . 2 11 . . . 1 Investigation 3 | . . . . . . . 1 2 . . . . Extermination 6 | . . . . . . . . 6 . . . . Reinforcement 5 | . . . 1 . . . 1 3 . . . . Assault 1 | . . . . . . . . . . . . 1 Garrison . | . . . . . . . . . . . . . Intercept . | . . . . . . . . . . . . . Searches Triggered . | . . . . . . . . . . . . . Construction Impeded . | . . . . . . . . . . . . . Haulers Reinforced 1 | . . . . . . . . 1 . . . . Active Scanning Responses . | . . . . . . . . . . . . . Cargo Convoy Interrupts . | . . . . . . . . . . . . . Stealth | -11 -10 -10 -9 -9 -9 -8 -8 -7 -7 -7 -7 -6 --------- Run | Yrd Mat Min Mat Min Exi Min Mat Fac Low Low Dat Pro Distress Signals 6 | . 1 . 1 . . . 3 1 . . . . Communications Jammed . | . . . . . . . . . . . . . Distress Signals . | . . . . . . . . . . . . . Times Spotted 152 | . 12 8 21 12 . 3 24 25 17 8 5 17 Peak Tracking Total 9 | . 5 4 5 5 . 3 5 3 5 3 2 9 Tactical Retreats 3 | . 1 . 1 . . . . . 1 . . . Traps | -11 -10 -10 -9 -9 -9 -8 -8 -7 -7 -7 -7 -6 ------- Run | Yrd Mat Min Mat Min Exi Min Mat Fac Low Low Dat Pro Traps Triggered 3 | . 1 . 1 . . . . 1 . . . . Indirectly . | . . . . . . . . . . . . . Trap Hack Attempts . | . . . . . . . . . . . . . Triggered . | . . . . . . . . . . . . . Disarmed 9 | . 9 . . . . . . . . . . . Reprogrammed . | . . . . . . . . . . . . . Reused . | . . . . . . . . . . . . . Traps Extracted . | . . . . . . . . . . . . . Installed . | . . . . . . . . . . . . . Triggered . | . . . . . . . . . . . . . Objects Rigged 1 | . . . 1 . . . . . . . . . Exploded 1 | . . . 1 . . . . . . . . . Machines | -11 -10 -10 -9 -9 -9 -8 -8 -7 -7 -7 -7 -6 ---------- Run | Yrd Mat Min Mat Min Exi Min Mat Fac Low Low Dat Pro Machines Disabled 11 | . . . 2 . . 1 1 5 1 . . 1 Max in Single Turn 2 | . . . 1 . . 1 1 2 1 . . 1 Machines Repaired . | . . . . . . . . . . . . . Machines Dismantled . | . . . . . . . . . . . . . Machines Sabotaged . | . . . . . . . . . . . . . Overloaded Fab Kills . | . . . . . . . . . . . . . Hacking | -11 -10 -10 -9 -9 -9 -8 -8 -7 -7 -7 -7 -6 --------- Run | Yrd Mat Min Mat Min Exi Min Mat Fac Low Low Dat Pro Machines Accessed 20 | . 1 . 4 . 2 . 1 8 . . 4 . Terminals 12 | . 1 . 4 . . . . 7 . . . . Fabricators 1 | . . . . . . . . 1 . . . . Repair Stations 1 | . . . . . . . 1 . . . . . Recycling Units . | . . . . . . . . . . . . . Scanalyzers . | . . . . . . . . . . . . . Garrison Access . | . . . . . . . . . . . . . Total Hacks 60 | . 3 . 11 . 2 . 1 15 . . 28 . Successful 43 | . 3 . 5 . 2 . 1 4 . . 28 . Failed 17 | . . . 6 . . . . 11 . . . . Catastrophic 5 | . . . . . . . . 5 . . . . Database Lockouts . | . . . . . . . . . . . . . Manual 19 | . . . 8 . 2 . 1 8 . . . . Terminals 28 | . 3 . 11 . . . . 14 . . . . Fabricators 1 | . . . . . . . . 1 . . . . Repair Stations 1 | . . . . . . . 1 . . . . . Recycling Units . | . . . . . . . . . . . . . Scanalyzers . | . . . . . . . . . . . . . Garrison Access . | . . . . . . . . . . . . . Terminal Hacks 37 | . 3 . 3 . 2 . . 1 . . 28 . Record 13 | . . . . . 2 . . . . . 11 . Part Schematic 11 | . . . 1 . . . . . . . 10 . Robot Schematic 4 | . . . . . . . . . . . 4 . Prototype ID Bank 3 | . . . . . . . . . . . 3 . Alert Level 1 | . . . . . . . . 1 . . . . Locate Traps 1 | . . . 1 . . . . . . . . . Disarm Traps 2 | . 2 . . . . . . . . . . . Hauler Manifests 1 | . 1 . . . . . . . . . . . Zone Layout 1 | . . . 1 . . . . . . . . . Fabricator Hacks . | . . . . . . . . . . . . . Repair Station Hacks . | . . . . . . . . . . . . . Recycling Unit Hacks . | . . . . . . . . . . . . . Scanalyzer . | . . . . . . . . . . . . . Garrison Access Hacks . | . . . . . . . . . . . . . Unauthorized Hacks 6 | . . . 2 . . . 1 3 . . . . Terminals 5 | . . . 2 . . . . 3 . . . . Track 1 | . . . 1 . . . . . . . . . Botnet 3 | . . . . . . . . 3 . . . . Detonate 1 | . . . 1 . . . . . . . . . Fabricators . | . . . . . . . . . . . . . Repair Stations 1 | . . . . . . . 1 . . . . . Patch 1 | . . . . . . . 1 . . . . . Recycling Units . | . . . . . . . . . . . . . Scanalyzers . | . . . . . . . . . . . . . Garrison Access . | . . . . . . . . . . . . . Data Cores Recovered . | . . . . . . . . . . . . . Used . | . . . . . . . . . . . . . Hacking Detections 13 | . 1 . 4 . . . . 8 . . . . Full Trace Events 3 | . . . 1 . . . . 2 . . . . Feedback Events . | . . . . . . . . . . . . . Feedback Blocked . | . . . . . . . . . . . . . Robot Schematics Acquired 4 | . . . . . . . . . . . 4 . Robots Built . | . . . . . . . . . . . . . Authchips . | . . . . . . . . . . . . . Time . | . . . . . . . . . . . . . Total Robot Build Rating . | . . . . . . . . . . . . . Part Schematics Acquired 11 | . . . 1 . . . . . . . 10 . Parts Built . | . . . . . . . . . . . . . Authchips . | . . . . . . . . . . . . . Time . | . . . . . . . . . . . . . Total Part Build Rating . | . . . . . . . . . . . . . Parts Repaired . | . . . . . . . . . . . . . Time . | . . . . . . . . . . . . . Parts Recycled . | . . . . . . . . . . . . . Recycled Matter . | . . . . . . . . . . . . . Retrieved Matter . | . . . . . . . . . . . . . Retrieved Components . | . . . . . . . . . . . . . Parts Scanalyzed . | . . . . . . . . . . . . . Part Schematics Acquired . | . . . . . . . . . . . . . Parts Damaged . | . . . . . . . . . . . . . Bothacking | -11 -10 -10 -9 -9 -9 -8 -8 -7 -7 -7 -7 -6 ------------ Run | Yrd Mat Min Mat Min Exi Min Mat Fac Low Low Dat Pro Used RIF Installer . | . . . . . . . . . . . . . Robots Hacked . | . . . . . . . . . . . . . Non-combat . | . . . . . . . . . . . . . Combat . | . . . . . . . . . . . . . Robot Hacks Applied . | . . . . . . . . . . . . . Relay Couplers Released . | . . . . . . . . . . . . . Fabnet Peak Effective % . | . . . . . . . . . . . . . Robots Rewired 2 | . . . . . . . . . . . . 2 Allies Hacked . | . . . . . . . . . . . . . Hacks Repelled . | . . . . . . . . . . . . . Allies | -11 -10 -10 -9 -9 -9 -8 -8 -7 -7 -7 -7 -6 -------- Run | Yrd Mat Min Mat Min Exi Min Mat Fac Low Low Dat Pro Total Allies 5 | . . 3 . . . . . . . . . 2 Largest Group 3 | . . 3 . . . . . . . . . 2 Highest-Rated Group 49 | . . 40 . . . . . . . . . 49 Highest-Rated Ally 29 | . . 16 . . . . . . . . . 29 Total Orders 2 | . . 2 . . . . . . . . . . STAY 1 | . . 1 . . . . . . . . . . ROAM 1 | . . 1 . . . . . . . . . . Ally Attacks 36 | . . 34 . . . . . . . . . 2 Total Damage 338 | . . 300 . . . . . . . . . 38 Kills 6 | . . 6 . . . . . . . . . . Allies Corrupted . | . . . . . . . . . . . . . Allies Melted 1 | . . 1 . . . . . . . . . . Intel | -11 -10 -10 -9 -9 -9 -8 -8 -7 -7 -7 -7 -6 ------- Run | Yrd Mat Min Mat Min Exi Min Mat Fac Low Low Dat Pro Active Infowar (turns) 1460 | . 206 248 871 135 . . . . . . . . Structural 1005 | . . . 870 135 . . . . . . . . T.N.C. 1441 | . 206 248 854 133 . . . . . . . . Robot Analysis Total 151 | . . . . . . . . . . . 151 . Derelict Logs Recovered 2 | . . 1 . . . . . . 1 . . . Drone Launches . | . . . . . . . . . . . . . Drone Recoveries . | . . . . . . . . . . . . . Exploration | -11 -10 -10 -9 -9 -9 -8 -8 -7 -7 -7 -7 -6 ------------- Run | Yrd Mat Min Mat Min Exi Min Mat Fac Low Low Dat Pro Turns Passed 8647 | 52 259 248 871 589 757 93 726 2026 1134 886 529 477 Spaces Moved 4549 | 36 182 183 448 320 491 51 265 1088 608 478 185 214 Core 50 | 5 . . . . . . . . . . . 45 Treads 81 | . . . 1 . . . . . . . 80 . Legs 189 | . . . . . . . . . . . 20 169 Wheels 4229 | 31 182 183 447 320 491 51 265 1088 608 478 85 . Hover . | . . . . . . . . . . . . . Flight . | . . . . . . . . . . . . . Fastest Speed 50 | 50 95 110 140 140 140 155 150 145 155 170 140 50 Average Speed 152 | 85 105 112 141 152 152 155 172 152 163 170 201 130 Slowest Speed 640 | 95 110 140 320 155 155 155 230 245 260 170 640 190 Overloaded Moves . | . . . . . . . . . . . . . Propulsion Burnouts . | . . . . . . . . . . . . . Robots Hopped . | . . . . . . . . . . . . . Potential Cave-ins . | . . . . . . . . . . . . . Cave-ins Triggered 1 | . . . . . . . . . . . . 1 Exploration Rate (%) 44 | 4 39 43 37 61 89 14 22 32 65 68 77 24 Regions Visited 12 Branch Regions 8 Pre-discovered Areas 29 | . . . . . . . . . . . 29 . Known Exits Taken 1 | . . . . . . . . 1 . . . . Unknown Exits Taken 11 | 1 1 1 1 1 1 1 1 . 1 1 1 . Scrap Searched 9 | . . 2 . 3 . 1 . . 2 1 . . Spaces Dug . | . . . . . . . . . . . . . Terrain Destroyed 215 | . . . 2 . . 13 6 43 22 18 21 90 Melee . | . . . . . . . . . . . . . Projectile 57 | . . . . . . . 6 20 13 13 . 5 AOE 157 | . . . 2 . . 13 . 22 9 5 21 85 Terrain Rammed . | . . . . . . . . . . . . . Walls Destroyed . | . . . . . . . . . . . . . Machines Disabled . | . . . . . . . . . . . . . Actions | -11 -10 -10 -9 -9 -9 -8 -8 -7 -7 -7 -7 -6 --------- Run | Yrd Mat Min Mat Min Exi Min Mat Fac Low Low Dat Pro Total 5556 | 46 215 202 587 373 497 58 409 1319 682 513 300 355 Wait 160 | . 3 . 19 . 1 . 20 49 16 4 21 27 Move 4537 | 35 181 182 447 319 490 50 264 1087 607 477 184 214 Hop . | . . . . . . . . . . . . . Pick Up 144 | . 6 4 31 8 . 1 17 29 5 3 14 26 Fast Attach 65 | 6 2 . 5 4 3 . 6 14 6 3 10 6 Attach 50 | . 1 2 5 . . 1 5 5 1 3 14 13 Detach 11 | . 1 . 1 1 . . . . 1 . 5 2 Swap 77 | . 1 2 9 3 . 2 13 19 4 4 13 7 Drop 133 | . 1 . 19 14 3 . 24 44 10 2 13 3 Fire 337 | 5 19 12 51 24 . 4 60 62 32 17 26 25 Melee . | . . . . . . . . . . . . . Ram 2 | . . . . . . . . 2 . . . . Kick . | . . . . . . . . . . . . . Crush . | . . . . . . . . . . . . . Escape Stasis 8 | . . . . . . . . 8 . . . . Rewire 32 | . . . . . . . . . . . . 32 Trap . | . . . . . . . . . . . . . Miscellaneous . | . . . . . . . . . . . . . Route ------- -11/Scrapyard -10/Materials -10/Mines (discovered 2 exits: *Mat / Sub) -9/Materials (discovered 2 exits: *Mat / [*Min]) -9/Mines (discovered 3 exits: *Mat x2 / *Exi) -9/Exiles (discovered 2 exits: [*Min x2]) -8/Mines -8/Materials -7/Factory (discovered 4 exits: *Fac x3 / *Low) -7/Lower Caves -7/Lower Caves -7/Data Miner -6/Proximity Caves History --------- Turn | Location | Event 38 | -11/Scrapyard | Discovered new exit (range 14) 53 | -11/Scrapyard | Entered Materials 294 | -10/Materials | Discovered new exit (range 12) 312 | -10/Materials | Entered Mines 317 | -10/Mines | Build established: Mutant 338 | -10/Mines | Assembled infested the area 343 | -10/Mines | Assisted by a Guerilla fighting off Assembled 387 | -10/Mines | Identified exit to Subcaves 462 | -10/Mines | Assisted by bots powering up and referring to "LRC-V3" 549 | -10/Mines | Discovered new exit (range 7) 560 | -10/Mines | Entered Materials 560 | -9/Materials | Evolved 2 slots: Utility x1, Weapon x1 1006 | -9/Materials | Build established: Skirmisher 1213 | -9/Materials | Discovered new exit (range 14) 1355 | -9/Materials | Discovered new exit (range 15) 1431 | -9/Materials | Entered Mines 1643 | -9/Mines | Discovered new exit (range 8) 1679 | -9/Mines | Discovered new exit (range 8) 1863 | -9/Mines | Build established: Tank 1885 | -9/Mines | Found a damaged Exp. Sensor Array with a note attached 1889 | -9/Mines | Found Prototype Device 1889 | -9/Mines | Identified Exp. Sensor Array 2012 | -9/Mines | Deemed a non-threat by the Exiles lab entrance 2014 | -9/Mines | Discovered new exit (range 5) 2020 | -9/Mines | Entered Exiles 2020 | -9/Exiles | Found Exiles lab abandoned 2078 | -9/Exiles | Discovered new exit (range 15) 2475 | -9/Exiles | Build established: Scavenger-Tank 2758 | -9/Exiles | Discovered new exit (range 12) 2777 | -9/Exiles | Entered Mines 2858 | -8/Mines | Discovered new exit (range 8) 2870 | -8/Mines | Entered Materials 2870 | -8/Materials | Evolved 2 slots: Propulsion x1, Utility x1 3113 | -8/Materials | Lost 3 parts (1n2u) 3505 | -8/Materials | Discovered new exit (range 16) 3596 | -8/Materials | Entered Factory 3596 | -7/Factory | Evolved 2 slots: Utility x1, Weapon x1 3971 | -7/Factory | Build established: Scavenger-Gunner 4194 | -7/Factory | Discovered new exit (range 7) 4237 | -7/Factory | Identified exit to Factory 4411 | -7/Factory | Discovered exit to Factory (range 9) 4762 | -7/Factory | Build established: Gunner 4806 | -7/Factory | Discovered exit to Factory (range 11) 5560 | -7/Factory | Discovered new exit (range 12) 5592 | -7/Factory | Identified exit to Lower Caves 5622 | -7/Factory | Entered Lower Caves 5905 | -7/Lower Caves | Attacked by a delusional Derelict stockpiling parts 6033 | -7/Lower Caves | Ambushed by wild Derelicts 6358 | -7/Lower Caves | Found Imp. Powered Armor 6742 | -7/Lower Caves | Discovered new exit (range 5) 6756 | -7/Lower Caves | Entered another Lower Caves area 6852 | -7/Lower Caves | Encountered a Warlord checkpoint 7386 | -7/Lower Caves | Spotted B-75 Beast 7397 | -7/Lower Caves | Destroyed B-75 Beast 7525 | -7/Lower Caves | Discovered new exit (range 14) 7642 | -7/Lower Caves | Entered Data Miner 7642 | -7/Data Miner | Discovered new exit (range 6) 7675 | -7/Data Miner | Met Data Miner 7720 | -7/Data Miner | Learned location of Section 7 (-2) 7720 | -7/Data Miner | Acquired the access code to Warlord's prototype stash 7747 | -7/Data Miner | Received God Mode back door access code from Data Miner 7779 | -7/Data Miner | Interfaced with the Data Conduit 7858 | -7/Data Miner | Lost 7 parts (1p2n1u3w) 7938 | -7/Data Miner | System corruption reached 10% 7941 | -7/Data Miner | Found Corrupted Exp. Thermal Shield 7942 | -7/Data Miner | Lost 4 parts (1p1u2w) 8112 | -7/Data Miner | System corruption reached 30% 8171 | -7/Data Miner | Entered Proximity Caves 8217 | -6/Proximity Caves | Attracted the attention of an 0b10 outpost 8236 | -6/Proximity Caves | Build established: Scavenger-Gunner 8249 | -6/Proximity Caves | Core integrity fell below 50% 8324 | -6/Proximity Caves | Lost 6 parts (1p1u4w) 8402 | -6/Proximity Caves | Core integrity fell below 20% 8438 | -6/Proximity Caves | Lost 3 parts (1n1u1w) 8446 | -6/Proximity Caves | Crushed by falling debris 8648 | -6/Proximity Caves | Destroyed by S-27 Virus with Autogun Last Messages --------------- 08522_ Acquired Med. Treads. 08524_ System corrupted: Energy discharge (-60). 08527_ The unstable cave ceiling collapses. 08529_ Extracted 8 energy. 08531_ Acquired Adv. Energy Well. 08536_ Discarded Core Analyzer. 08541_ Acquired Corrupted Enh. Flexi-carbon Leg. 08542_ System corrupted: Matter fused (-9). 08546_ Acquired Lightning Gun. 08557_ T|UVAQ2TDXQN7GLQOKEF0P 08557_ Integrated Corrupted Enh. Flexi-carbon Leg (+7). 08566_ Acquired 4 matter. 08573_ IYWZ>X1H2ON:JE9NXCPQRG5&HY|UXQW2RB%D 08573_ Acquired 104 matter. 08588_ System corrupted: Matter fused (-5). 08603_ ,8ZRCAZB75N5PWG0|| D52YLEAFATWHEHTK 08633_ 1BHU 1L6ZMSZLEP/GGATJYAK 08643_ S-27 Virus destroyed. 08645_ Destroyed Lgt. Nuclear Core. Map ----- +----------------------------------------------------+ | ?????????????????????????????????????????????????? | | ?????????????????????????????????????????????????? | | ?????????????????????????????????????????????????? | | ?????????????????????????????????????????????????? | | ?????????????????????????????????????????????????? | | ?????????????????????????????????????????????????? | | ?????????????????????????????????????????????????? | | ?????????????????????????? ????????????????????? | | ?????????????????????????? ??????????????????? | | ?????????????????????????? #???????????????? | | ?????????????????????????? ##?????????????? | | ?????????????????????????# ???????????? | | ?????????????????????????# ????????????? | | ???????? #???????????????# ?????????????? | | ??????? #??????????????## #?????????????? | | ?????? #?????????????## #??????????????? | | ????? #????????????## #???????????????? | | ##### ##????????#### #????????????????? | | ##??????## s #????????????????? | | #??????# *s #????????????????? | | #??????# #????????????????? | | #?####### ?????????????????? | | #??????# #??????????????????? | | #??????# #??????????????????? | | #??????# ## # ### #???????????????????? | | #####??????# ## ###?# @ #????????????????????? | | #??????????# ## #???## #???????????????????? | | ##?????????# #????# #???????????????????? | | ##????????# ####????# #??????????????????? | | ##????#### #??????? ?????????????????? | | ###?## ## #??????? ????????????????? | | ### ##????? #???????????????? | | #????? # ##???????????????? | | ## ##???? # ##????????????????? | | ########?????# # ####?????????????????? | | ###????????????# # #????????????????????? | | ### ###??????????????# ? #????????????????????? | | ??####????????????????$ ? #????????????????????? | | ?????????????????????? ? ????????????????????? | | ??????????????????????? ? ????????????????????? | | ??????????????????????? ??? ?????????????????????? | | ?????????????????????????????????????????????????? | | ?????????????????????????????????????????????????? | | ?????????????????????????????????????????????????? | | ?????????????????????????????????????????????????? | | ?????????????????????????????????????????????????? | | ?????????????????????????????????????????????????? | | ?????????????????????????????????????????????????? | | ?????????????????????????????????????????????????? | | ?????????????????????????????????????????????????? | +----------------------------------------------------+ Best States ------------- Heat Dissipation 62 Energy Generation 21 Energy Capacity 650 Matter Stores 300 Matter Capacity 500 Sight Range 16 Terrain Scan Density 10 Armor Coverage 450 Resistance: TH 10 Core Shielding 20 Weapon Shielding 66 Evasion (%) 55 Targeting Accuracy 6 Target Analysis 5 Core Analysis 9 Recoil Reduction 3 Energy Filtering 50 Kinecelleration 30 Item Schematics ----------------- Plasma Cutter | -9/Materials | Hacked Combat Drone Bay | -7/Data Miner | Free Lgt. Regenerative Plating | -7/Data Miner | Free Cld. Aerolev Unit | -7/Data Miner | Free Gravity Neutralizer | -7/Data Miner | Free Imp. Heavy Machine Gun | -7/Data Miner | Free Cmb. Gravmag System | -7/Data Miner | Free Mni. Drone Bay | -7/Data Miner | Free Triangulator | -7/Data Miner | Free Hyp. Coil Gun | -7/Data Miner | Free Adv. Recoil Stabilizer | -7/Data Miner | Free Robot Schematics ------------------ G-47 Trooper | -7/Data Miner | Free W-25 Informer | -7/Data Miner | Free A-15 Conveyor | -7/Data Miner | Free R-10 Processor | -7/Data Miner | Free Fabricated ------------ Nothing Repaired ---------- Nothing Alien Tech Used ----------------- None Achievements -------------- None Challenges ------------ None Game ------ Seed FlightProtonWarhead Manual? 0 Play Time 00:58:03 Cumulative 305.3 hours Start 2025.06.27 @ 16:52:17 End 2025.06.27 @ 17:46:55 Sessions 1 Manual Loads 0 Difficulty Rogue Special Mode None Game No. 269 Rogue 269 Adventurer 0 Explorer 0 Win Type - Total 2 Types 1/1/0/0/0/0/0/0/0/0 Lore% 77 Gallery% 80 Achievement% 72 Wizard Run 0 Options --------- Layout 1 ASCII 0 Keyboard 0 Movement Numpad Keybinds 0 Fullscreen 1 Font 24/Smallcaps Map View 50x35 Zoom Use 0% Tactical HUD 1 Map Filters NONE Filters NONE Steam 1 RUN: c7a8a44b-517a-4927-8360-58d66f513518